Cogmind - Beta 16.1 @@@ ROGUE MODE // 2026.05.01 @ 20:46:43 Player: Thqwib-Linux Result: Destroyed by G-47 Trooper with Particle Gun Performance ------------- Evolutions (0) 0 Regions Visited (1) 200 Robots Destroyed (12) 60 Value Destroyed (257) 257 Prototype IDs (0) 0 Alien Tech Used (0) 0 Bonus (0) 0 TOTAL SCORE: 517 Bonus ------- None Cogmind --------- Core Integrity 0/250 Matter 278/300 Energy 61/100 System Corruption 0% Temperature Cool (47) Movement Treading (240) Ox1 Location -10/Materials Parts ------- > --- POWER (1) -------- (None) > --- PROPULSION (2) --- Improved Treads Wheel > --- UTILITY (2) ------ Large Storage Unit > --- WEAPON (2) ------- Beam Cannon Light Assault Rifle > --- INVENTORY (15) --- Improved Treads Improved Treads Flight Unit Flight Unit Flight Unit Flight Unit Particle Gun Peak State ------------ > --- POWER ------------ Light Ion Engine > --- PROPULSION ------- Improved Treads Wheel > --- UTILITY ---------- Small Storage Unit Large Storage Unit > --- WEAPON ----------- Small Laser Assault Rifle > --- INVENTORY -------- Improved Treads Improved Treads Flight Unit Flight Unit Flight Unit Flight Unit Small Laser Particle Gun [Rating: 9] Favorites ----------- Power Light Ion Engine Engine Light Ion Engine Propulsion Improved Treads Treads Improved Treads Leg Aluminum Leg Wheel Wheel Utility Small Storage Unit Storage Small Storage Unit Weapon Small Laser Energy Gun Small Laser Energy Cannon Beam Cannon Ballistic Gun Assault Rifle Build | -11 -10 ------- Run | Yrd Mat Slots Evolved . | . . Power . | . . Propulsion . | . . Utility . | . . Weapon . | . . Parts Attached 10 | 2 8 Power 1 | . 1 Engine 1 | . 1 Core . | . . Reactor . | . . Propulsion 5 | 2 3 Treads 3 | 1 2 Leg . | . . Wheel 2 | 1 1 Hover . | . . Flight . | . . Utility 1 | . 1 Device . | . . Storage 1 | . 1 Processor . | . . Hackware . | . . Protection . | . . Artifact . | . . Weapon 3 | . 3 Energy Gun 1 | . 1 Energy Cannon 1 | . 1 Ballistic Gun 1 | . 1 Ballistic Cannon . | . . Launcher . | . . Special Weapon . | . . Impact Weapon . | . . Slashing Weapon . | . . Piercing Weapon . | . . Special Melee Weapon . | . . Unidentified Prototypes . | . . Parts Lost 3 | . 3 Power 2 | . 2 Propulsion . | . . Utility . | . . Weapon 1 | . 1 Highest Loss Streak 1 | . 1 To Critical Strikes . | . . Average Backups 6 | 4 7 Power . | 1 . Propulsion 4 | 2 5 Utility . | . . Weapon 1 | 1 1 Tool/Special . | . . Unused Backups 17 | 4 13 Power . | . . Propulsion 14 | 4 10 Utility 2 | . 2 Weapon 1 | . 1 Tool/Special . | . . Average Slot Usage (%) 83 | . 83 Engine 12 | . 12 Treads 14 | . 14 Wheel 14 | . 14 Storage 14 | . 14 Energy Gun 16 | . 16 Ballistic Gun 11 | . 11 Peak Build Rating 9 | 6 9 Average Rating 7 | 6 7 On Entrance 6 | 6 6 Avg Prop Armor Cover (%) 8 | 3 8 Naked Turns . | . . Heaviest Build 31 | 13 31 Greatest Support 23 | 20 23 Greatest Overweight (x) 2 | . 2 Average Overweight (x) . | . . Largest Inventory Capacity 15 | 8 15 Average Capacity 10 | 8 11 Most Carried 8 | 6 8 Average Carried 6 | 4 7 Final Capacity 15 | 8 15 Final Carried 7 | 4 7 Class Distribution -------------------- 100% | Mutant Dominant Class ---------------- Mutant | -10/Materials Resources | -11 -10 ----------- Run | Yrd Mat Matter Collected 369 | 229 140 Remotely . | . . Salvage Created 396 | 84 312 Parts 22 | 3 19 Haulers Intercepted 1 | . 1 Recyclers Shooed . | . . Parts Field Recycled . | . . Retrieved Matter . | . . Parts Self-Destructed . | . . Prevented . | . . Parts Restored . | . . Kills | -11 -10 ------- Run | Yrd Mat Combat Hostiles Destroyed 8 | . 8 Guns 8 | . 8 Classes Destroyed 6 | 2 4 Tunneler 1 | 1 . Hauler 1 | . 1 Recycler 1 | 1 . Watcher 1 | . 1 Swarmer 3 | . 3 Grunt 5 | . 5 Best Kill Streak 6 | 2 6 Combat Bots Only 6 | . 6 Max Kills in Single Turn 1 | 1 1 Gunslinging . | . . Exploded . | . . Melee . | . . Uniques/NPCs Destroyed . | . . Combat | -11 -10 -------- Run | Yrd Mat Hostile Shots Fired 87 | . 87 Missed 22 | . 22 Hits 65 | . 65 Projectile 65 | . 65 Damage Taken 805 | . 805 Core 255 | . 255 Absorbed by Shields . | . . Core Remaining (%) 100 | 100 . Volleys Fired 50 | 3 47 Largest 2 | 2 2 Hottest 80 | 60 80 Shots Fired 100 | 6 94 Gun 98 | 6 92 Cannon 2 | . 2 Launcher . | . . Special . | . . Kinetic 35 | 3 32 Thermal 65 | 3 62 Explosive . | . . Electromagnetic . | . . Robot Hit Streak 8 | 6 8 Robot Miss Streak 4 | . 4 Penetration Max . | . . Secondary Targets 2 | . 2 Max Gunslinging Chain 1 | . 1 Shots Hit Robots 68 | 6 62 Core Hits 22 | 3 19 Critical Kills . | . . Critical Parts Destroyed . | . . Critical Strikes . | . . Melee Attacks . | . . Impact . | . . Slashing . | . . Piercing . | . . Sneak Attacks . | . . Combat Hostiles . | . . Follow-up Attacks . | . . Damage Inflicted 829 | 72 757 Guns 793 | 72 721 Cannons 36 | . 36 Explosions . | . . Melee . | . . Ramming . | . . Kinetic 341 | 38 303 Thermal 488 | 34 454 Explosive . | . . Electromagnetic . | . . Impact . | . . Slashing . | . . Piercing . | . . Highest Corruption . | . . Average Corruption . | . . Corruption Purged . | . . Corruption Blocked . | . . Overload Shots . | . . Overflow Damage . | . . Projectiles . | . . Explosions . | . . Melee . | . . Knockbacks . | . . Impact . | . . Kinetic . | . . Secondary . | . . Self-Inflicted Damage . | . . Shots . | . . Rammed . | . . Targets Rammed . | . . Kicked . | . . Crushed . | . . Highest Temperature 187 | . 187 Average Temperature 52 | . 52 Received Heat Transfer 384 | . 384 Siege Activations . | . . Martial Activations . | . . Shielding Activations . | . . Robots Disrupted . | . . Combat Hostiles . | . . Robots Corrupted . | . . Combat Hostiles . | . . Parts Fried . | . . Impact Corruptions . | . . Robots Melted . | . . Combat Hostiles . | . . Parts Melted 1 | . 1 Heat Transferred 1099 | 75 1024 Parts Sabotaged . | . . Parts Stolen . | . . Parts Stripped . | . . Power Chain Reactions . | . . Alert | -11 -10 ------- Run | Yrd Mat Maximum Alert Level . | . . Low Security (%) 100 | 100 100 Level 1 . | . . Level 2 . | . . Level 3 . | . . Level 4 . | . . Level 5 . | . . High Security . | . . Max Security . | . . Peak Influence 100 | 5 100 Initial . | . . Average 28 | 3 30 Influence Increases 259 | 10 249 Destroy 0b10 Robot/C 160 | . 160 Destroy 0b10 Robot/NC 20 | 10 10 Destroy Leader 34 | . 34 Select Force Hacks 30 | . 30 Lose Combat Pursuer 15 | . 15 Influence Decreases 244 | 10 234 Time Decay 224 | 10 214 Lost Part 20 | . 20 Squads Dispatched 1 | . 1 Investigation 1 | . 1 Extermination . | . . Reinforcement . | . . Assault . | . . Garrison . | . . Intercept . | . . Searches Triggered . | . . Construction Impeded . | . . Haulers Reinforced . | . . Active Scanning Responses . | . . Cargo Convoy Interrupts . | . . Stealth | -11 -10 --------- Run | Yrd Mat Distress Signals 1 | . 1 Communications Jammed . | . . Distress Signals . | . . Times Spotted 11 | . 11 Peak Tracking Total 5 | . 5 Tactical Retreats 1 | . 1 Traps | -11 -10 ------- Run | Yrd Mat Traps Triggered . | . . Indirectly . | . . Trap Hack Attempts . | . . Triggered . | . . Disarmed . | . . Reprogrammed . | . . Reused . | . . Traps Extracted . | . . Installed . | . . Triggered . | . . Machines | -11 -10 ---------- Run | Yrd Mat Machines Disabled . | . . Max in Single Turn . | . . Machines Repaired . | . . Machines Dismantled . | . . Machines Sabotaged . | . . Overloaded Fab Kills . | . . Hacking | -11 -10 --------- Run | Yrd Mat Machines Accessed 1 | . 1 Terminals . | . . Fabricators . | . . Repair Stations . | . . Recycling Units 1 | . 1 Scanalyzers . | . . Garrison Access . | . . Total Hacks 3 | . 3 Successful 1 | . 1 Failed 2 | . 2 Catastrophic . | . . Database Lockouts . | . . Manual 3 | . 3 Terminals . | . . Fabricators . | . . Repair Stations . | . . Recycling Units 3 | . 3 Scanalyzers . | . . Garrison Access . | . . Terminal Hacks . | . . Fabricator Hacks . | . . Repair Station Hacks . | . . Recycling Unit Hacks . | . . Scanalyzer . | . . Garrison Access Hacks . | . . Unauthorized Hacks 1 | . 1 Terminals . | . . Fabricators . | . . Repair Stations . | . . Recycling Units 1 | . 1 Tunnel 1 | . 1 Scanalyzers . | . . Garrison Access . | . . Data Cores Recovered . | . . Used . | . . Hacking Detections 1 | . 1 Full Trace Events . | . . Feedback Events . | . . Feedback Blocked . | . . Robot Schematics Acquired . | . . Robots Built . | . . Authchips . | . . Time . | . . Total Robot Build Rating . | . . Part Schematics Acquired . | . . Parts Built . | . . Authchips . | . . Time . | . . Total Part Build Rating . | . . Part Studies Acquired . | . . Parts Repaired . | . . Time . | . . Parts Recycled . | . . Recycled Matter . | . . Retrieved Matter . | . . Retrieved Components . | . . Parts Scanalyzed . | . . Part Schematics Acquired . | . . Parts Damaged . | . . Bothacking | -11 -10 ------------ Run | Yrd Mat Used RIF Installer . | . . Robots Hacked . | . . Non-combat . | . . Combat . | . . Robot Hacks Applied . | . . Relay Couplers Released . | . . Fabnet Peak Effective % . | . . Robots Rewired . | . . Allies Hacked . | . . Hacks Repelled . | . . Allies | -11 -10 -------- Run | Yrd Mat Total Allies . | . . Largest Group . | . . Highest-Rated Group . | . . Highest-Rated Ally . | . . Total Orders . | . . Ally Attacks . | . . Total Damage . | . . Kills . | . . Allies Corrupted . | . . Allies Melted . | . . Intel | -11 -10 ------- Run | Yrd Mat Active Infowar (turns) . | . . Robot Analysis Total . | . . Derelict Logs Recovered . | . . Drone Launches . | . . Drone Recoveries . | . . Exploration | -11 -10 ------------- Run | Yrd Mat Turns Passed 659 | 46 613 Spaces Moved 305 | 21 284 Core . | . . Treads 189 | 21 168 Legs . | . . Wheels 116 | . 116 Hover . | . . Flight . | . . Fastest Speed 100 | 160 100 Average Speed 158 | 160 158 Slowest Speed 240 | 160 240 Overloaded Moves . | . . Propulsion Burnouts . | . . Robots Hopped . | . . Potential Cave-ins . | . . Cave-ins Triggered . | . . Exploration Rate (%) 11 | 2 20 Regions Visited 1 Branch Regions . Pre-discovered Areas 1 | . 1 Known Exits Taken . | . . Unknown Exits Taken 1 | 1 . Scrap Searched . | . . Spaces Dug . | . . Terrain Destroyed . | . . Melee . | . . Projectile . | . . AOE . | . . Terrain Rammed . | . . Walls Destroyed . | . . Machines Disabled . | . . Actions | -11 -10 --------- Run | Yrd Mat Total 389 | 27 362 Wait 1 | . 1 Move 304 | 20 284 Hop . | . . Pick Up 12 | . 12 Fast Attach 1 | . 1 Attach 2 | . 2 Detach 1 | . 1 Swap 7 | 2 5 Drop 11 | 2 9 Fire 50 | 3 47 Melee . | . . Ram . | . . Kick . | . . Crush . | . . Escape Stasis . | . . Rewire . | . . Trap . | . . Miscellaneous . | . . Route ------- -11/Scrapyard -10/Materials (discovered 1 exit: [*Mat]) History --------- Turn | Location | Event 6 | -11/Scrapyard | Discovered new exit (range 3) 47 | -11/Scrapyard | Entered Materials 261 | -10/Materials | Discovered new exit (range 15) 306 | -10/Materials | Build established: Mutant 550 | -10/Materials | Core integrity fell below 50% 636 | -10/Materials | Core integrity fell below 20% 660 | -10/Materials | Destroyed by G-47 Trooper with Particle Gun Last Messages --------------- 00242_ Dropped Flight Unit. 00242_ Acquired Flight Unit. 00247_ Dropped Flight Unit. 00247_ Acquired Flight Unit. 00261_ EXIT=FOUND 00263_ A-02 Transporter destroyed. 00379_ Acquired Lrg. Storage Unit. 00388_ Dropped Sml. Storage Unit. 00498_ U-05 Engineer sends out distress signal. 00504_ K-01 Serf collects debris. 00539_ Assault Rifle destroyed. 00554_ G-47 Trooper heat damages Imp. Heat Sink. 00556_ G-47 Trooper destroyed. 00579_ Acquired 49 matter. 00622_ Lgt. Ion Engine destroyed. 00636_ Melted Aluminum Leg. 00638_ G-34 Mercenary overheating. 00639_ G-34 Mercenary destroyed. 00650_ Acquired Lgt. Assault Rifle. 00654_ Acquired Beam Cannon. Map ----- +----------------------------------------------------+ | ?????????????????????????????????? | | ?????????????????????????????????? | | ?????????????????????????????????? | | ?????????????????????????????????? | | ?????????????????????????????????? | | ?????????????????????????????????? | | ?????????????????????????????????? | | ?????????????????????????????????? | | ?????????????????????????????????? | | ?????????????????????????????????? | | ????????????????#/###########????? | | ????????????????# #????? | | ????????????????# "" #????? | | ????????????????# "" #????? | | ????????????????# "T """ #????? | | ????????????????# "" """ #????? | | ????????????????# "" """ #????? | | ????????????????# % #????? | | ?????#################+###+##????? | | ?????# % ^ % = #????? | | ?????# ######## ^ =* = #????? | | ##???# #??????# ^ !% =% #????? | | #???# #??????#+######+##g #????? | | #???# #??????# *=# #####? | | #???# #??????# = #! ==#? | | #???# #??????# #@! ==#? | | #???# #??????# #%] ]]#? | | #????# #??????# #!! ]]#? | | #????# #??????# # [[#? | | #????# #??????# # [[#? | | ###### #??????# # #####? | | ## #??????########### #????? | | ## #????????????????# #????? | | ##[[ #????????????????# #????? | | ##[[ #???????????????? #????? | | ##// #???????????????? #????? | | ##// #???????????????? +????? | | ###### #????????????????# < #????? | | ?????# #????????????????? #????? | | ###### #?????????????????####????? | | #?????????????????????????? | | ########?????????????????????????? | | ?????????????????????????????????? | | ?????????????????????????????????? | | ?????????????????????????????????? | | ?????????????????????????????????? | | | | | | | | | +----------------------------------------------------+ Best States ------------- Heat Dissipation 25 Energy Generation 10 Energy Capacity 250 Matter Stores 300 Matter Capacity 300 Sight Range 16 Terrain Scan Density 10 Evasion (%) 40 Recoil Reduction 1 Item Schematics ----------------- None Robot Schematics ------------------ None Fabricated ------------ Nothing Repaired ---------- Nothing Studied --------- None Alien Tech Used ----------------- None Achievements -------------- None Challenges ------------ None Game ------ Seed BottomlessThunderMatrix Manual? 0 Play Time 00:06:21 Cumulative 261.1 hours Start 2026.05.01 @ 20:43:13 End 2026.05.01 @ 20:46:43 Sessions 1 Manual Loads 0 Difficulty Rogue Special Mode None Game No. 142 Rogue 142 Adventurer 0 Explorer 0 Win Type - Total 9 Types 5/0/2/1/0/0/0/1/0/0 Lore% 74 Gallery% 66 Achievement% 57 Wizard Run 0 Options --------- Layout 2 ASCII 0 Keyboard 1 Movement Arrows Keybinds 0 Fullscreen 2 Font 24/Terminus Map View 50x44 Zoom Use 0% Tactical HUD 1 Map Filters NONE Filters NONE Steam 1 RUN: 771cd885-51d9-47b3-aaf3-cad178096315